[Event "ESP chT Honor Division 2019"]
[Site "Melilla"]
[Date "2019.10.04"]
[Round "5.2"]
[White "Idani, Pouya"]
[Black "Kuzubov, Yuriy"]
[Result "1/2-1/2"]
[ECO "C43"]
[WhiteElo "2568"]
[BlackElo "2636"]
[Annotator "ChessBase"]
[PlyCount "91"]
[EventDate "2019.09.30"]
[EventType "team-tourn"]
[EventCountry "ESP"]
[SourceTitle "playchess.com"]
[Source "ChessBase"]
[SourceQuality "1"]
[TimeControl "40/5400+30:1800+30"]

1. e4 {[%emt 0:00:00]} e5 {[%emt 0:00:00]} 2. Nf3 {[%emt 0:00:00]} Nf6 {[%emt 0:00:00]} 3. d4 {[%emt 0:00:54]} Nxe4 {[%emt 0:00:17]} 4. Bd3 {[%emt 0:00:06]} d5 {[%emt 0:00:05]} 5. Nxe5 {[%emt 0:00:14]} Nd7 {[%emt 0:00:15]} 6. Nxd7 {[%emt 0:01:32]} Bxd7 {[%emt 0:00:06]} 7. O-O {[%emt 0:00:03]} Bd6 {[%emt 0:05:45]} 8. Nc3 {[%emt 0:00:06]} Nxc3 {[%emt 0:00:57]} 9. bxc3 {[%emt 0:00:04]} O-O {[%emt 0:00:47]} 10. Qh5 {[%emt 0:00:03]} f5 {[%emt 0:00:49]} 11. Re1 {[%emt 0:05:38]} c6 {[%emt 0:30:34]} 12. Bg5 {[%emt 0:00:53]} Qc7 {[%emt 0:01:34]} 13. Re3 {[%emt 0:04:12]} g6 {[%emt 0:14:46]} 14. Qh4 {[%emt 0:00:07]} Rae8 {[%emt 0:02:03]} 15. Rae1 {[%emt 0:02:34]} Rxe3 {[%emt 0:15:30]} 16. Rxe3 {[%emt 0:00:06]} f4 {[%emt 0:00:53]} 17. Re1 {[%emt 0:03:19]} Re8 {[%emt 0:00:43]} 18. f3 {[%emt 0:03:50]} Rxe1+ {[%emt 0:07:12]} 19. Qxe1 {[%emt 0:00:06]} b5 {[%emt 0:01:36]} 20. h4 {[%emt 0:08:05]} Kg7 {[%emt 0:11:04]} 21. Be7 {[%emt 0:12:55]} Kf7 {[%emt 0:00:25]} 22. Bg5 {[%emt 0:00:05]} Kg7 {[%emt 0:01:28]} 23. Be7 {[%emt 0:00:06]} h6 {[%emt 0:00:44]} 24. h5 {[%emt 0:03:56]} g5 {[%emt 0:00:07]} 25. Bg6 {[%emt 0:00:02]} c5 {[%emt 0:01:54]} 26. Bxd6 {[%emt 0:02:17]} Qxd6 {[%emt 0:00:03]} 27. Be8 {[%emt 0:00:05]} Be6 {[%emt 0:01:36]} 28. Bxb5 {[%emt 0:01:01]} c4 {[%emt 0:00:36]} 29. Be8 {[%emt 0:13:14]} Bf5 {[%emt 0:00:09]} 30. Qb1 {[%emt 0:00:11]} Qb6 {[%emt 0:02:05]} 31. Qxb6 {[%emt 0:07:08]} axb6 {[%emt 0:00:04]} 32. Bc6 {[%emt 0:00:04]} Be6 {[%emt 0:00:11]} 33. Kf2 {[%emt 0:00:07]} Kf6 {[%emt 0:01:02]} 34. g4 {[%emt 0:01:58]} fxg3+ {[%emt 0:00:35]} 35. Kxg3 {[%emt 0:00:05]} Bf7 {[%emt 0:00:31]} 36. f4 {[%emt 0:05:47]} Be6 {[%emt 0:00:16]} 37. Be8 {[%emt 0:00:21]} Bf5 {[%emt 0:00:43]} 38. Bc6 {[%emt 0:00:06]} Be4 {[%emt 0:00:44]} 39. Kg4 {[%emt 0:00:39]} gxf4 {[%emt 0:00:22]} 40. Kxf4 {[%emt 0:00:05]} Ke6 {[%emt 0:00:09]} 41. Ba4 {[%emt 0:31:33]} Bh7 {[%emt 0:30:33]} 42. a3 {[%emt 0:00:52]} Be4 {[%emt 0:00:38]} 43. Kg4 {[%emt 0:00:36]} Bf5+ {[%emt 0:00:00]} 44. Kf4 {[%emt 0:00:00]} Be4 {[%emt 0:00:00]} 45. Kg4 {[%emt 0:00:00]} Bf5+ {[%emt 0:00:00]} 46. Kf4 {[%emt 0:00:00] Ke5+ Ke4+} 1/2-1/2

[Event "ESP chT Honor Division 2019"]
[Site "Melilla"]
[Date "2019.10.04"]
[Round "5.3"]
[White "Forcen Esteban, Daniel"]
[Black "Pap, Misa"]
[Result "0-1"]
[ECO "E44"]
[WhiteElo "2568"]
[BlackElo "2432"]
[Annotator "ChessBase"]
[PlyCount "74"]
[EventDate "2019.09.30"]
[EventType "team-tourn"]
[EventCountry "ESP"]
[SourceTitle "playchess.com"]
[Source "ChessBase"]
[SourceQuality "1"]
[TimeControl "40/5400+30:1800+30"]

1. d4 {[%emt 0:00:00]} Nf6 {[%emt 0:00:00]} 2. c4 {[%emt 0:00:00]} e6 {[%emt 0:00:00]} 3. Nc3 {[%emt 0:01:21]} Bb4 {[%emt 0:00:10]} 4. e3 {[%emt 0:00:06]} b6 {[%emt 0:02:50]} 5. Nge2 {[%emt 0:00:11]} c5 {[%emt 0:08:12]} 6. a3 {[%emt 0:07:36]} Ba5 {[%emt 0:00:07]} 7. Bd2 {[%emt 0:09:16]} O-O {[%emt 0:08:59]} 8. d5 {[%emt 0:15:38]} exd5 {[%emt 0:29:40]} 9. cxd5 {[%emt 0:03:02]} d6 {[%emt 0:04:55]} 10. g3 {[%emt 0:21:24]} Nbd7 {[%emt 0:10:20]} 11. Bg2 {[%emt 0:00:59]} Ne5 {[%emt 0:00:07]} 12. O-O {[%emt 0:00:43]} a6 {[%emt 0:02:18]} 13. h3 {[%emt 0:04:32]} b5 {[%emt 0:02:13]} 14. b3 {[%emt 0:01:22]} h5 {[%emt 0:05:47]} 15. f4 {[%emt 0:04:02]} Ng6 {[%emt 0:00:05]} 16. e4 {[%emt 0:02:52]} Re8 {[%emt 0:00:03]} 17. f5 {[%emt 0:03:34]} Ne5 {[%emt 0:02:48]} 18. Nf4 {[%emt 0:00:37]} b4 {[%emt 0:03:58]} 19. axb4 {[%emt 0:01:02]} cxb4 {[%emt 0:00:14]} 20. Na4 {[%emt 0:02:15]} Ned7 {[%emt 0:05:18]} 21. Nxh5 {[%emt 0:02:51]} Nxh5 {[%emt 0:00:03]} 22. Qxh5 {[%emt 0:00:05]} Nf6 {[%emt 0:00:01]} 23. Qh4 {[%emt 0:02:13]} Bd7 {[%emt 0:00:04]} 24. Qf4 {[%emt 0:02:56]} Bb5 {[%emt 0:01:18]} 25. Rfe1 {[%emt 0:00:20]} Nd7 {[%emt 0:00:10]} 26. Kh1 {[%emt 0:06:15]} Ne5 {[%emt 0:03:14]} 27. Nb2 {[%emt 0:00:08]} Rc8 {[%emt 0:00:21]} 28. Rec1 {[%emt 0:00:51]} Rc3 {[%emt 0:01:36]} 29. f6 {[%emt 0:03:22]} Ng6 {[%emt 0:03:37]} 30. Qg4 {[%emt 0:01:33]} Bd7 {[%emt 0:03:09]} 31. Qd1 {[%emt 0:02:10]} Rxg3 {[%emt 0:00:21]} 32. Kh2 {[%emt 0:00:05]} Qxf6 {[%emt 0:02:02]} 33. Kxg3 {[%emt 0:02:00]} Qe5+ {[%emt 0:00:09]} 34. Kf2 {[%emt 0:00:00]} Bb6+ {[%emt 0:00:00]} 35. Ke2 {[%emt 0:00:47]} Qxb2 {[%emt 0:00:08]} 36. Ke1 {[%emt 0:00:56]} Qd4 {[%emt 0:02:39]} 37. Qf3 {[%emt 0:00:40]} Ne5 {[%emt 0:00:10]} 0-1

[Event "ESP chT Honor Division 2019"]
[Site "Melilla"]
[Date "2019.10.04"]
[Round "5.4"]
[White "Suarez Real, Alberto"]
[Black "Llorente Zaro, Alfonso"]
[Result "1/2-1/2"]
[ECO "C45"]
[WhiteElo "2460"]
[BlackElo "2447"]
[Annotator "ChessBase"]
[PlyCount "89"]
[EventDate "2019.09.30"]
[EventType "team-tourn"]
[EventCountry "ESP"]
[SourceTitle "playchess.com"]
[Source "ChessBase"]
[SourceQuality "1"]
[TimeControl "40/5400+30:1800+30"]

1. e4 {[%emt 0:00:00]} e5 {[%emt 0:00:00]} 2. Nf3 {[%emt 0:00:00]} Nc6 {[%emt 0:00:00]} 3. d4 {[%emt 0:00:19]} exd4 {[%emt 0:00:00]} 4. Nxd4 {[%emt 0:00:04]} Nf6 {[%emt 0:00:18]} 5. Nxc6 {[%emt 0:00:43]} bxc6 {[%emt 0:00:08]} 6. e5 {[%emt 0:00:25]} Qe7 {[%emt 0:00:09]} 7. Qe2 {[%emt 0:00:10]} Nd5 {[%emt 0:00:06]} 8. h4 {[%emt 0:00:48]} d6 {[%emt 0:00:47]} 9. c4 {[%emt 0:01:52]} Nb6 {[%emt 0:01:06]} 10. exd6 {[%emt 0:00:59]} Qxe2+ {[%emt 0:00:33]} 11. Bxe2 {[%emt 0:00:12]} cxd6 {[%emt 0:00:08]} 12. Nc3 {[%emt 0:06:36]} Be6 {[%emt 0:00:28]} 13. b3 {[%emt 0:00:53]} d5 {[%emt 0:00:15]} 14. cxd5 {[%emt 0:11:41]} Bb4 {[%emt 0:00:23]} 15. Bd2 {[%emt 0:01:09]} Nxd5 {[%emt 0:00:15]} 16. Nxd5 {[%emt 0:05:25]} Bxd2+ {[%emt 0:00:05]} 17. Kxd2 {[%emt 0:00:05]} Bxd5 {[%emt 0:00:23]} 18. Rhe1 {[%emt 0:02:16]} O-O-O {[%emt 0:06:12]} 19. Kc3 {[%emt 0:01:22]} Rhe8 {[%emt 0:11:32]} 20. g3 {[%emt 0:05:28]} Kc7 {[%emt 0:01:45]} 21. Rad1 {[%emt 0:10:00]} Be6 {[%emt 0:09:07]} 22. Rxd8 {[%emt 0:08:33]} Rxd8 {[%emt 0:00:04]} 23. Bc4 {[%emt 0:01:03]} Bxc4 {[%emt 0:01:29]} 24. Kxc4 {[%emt 0:00:12]} Rd7 {[%emt 0:00:23]} 25. Re8 {[%emt 0:01:58]} h5 {[%emt 0:08:51]} 26. f3 {[%emt 0:14:23]} g6 {[%emt 0:22:23]} 27. a4 {[%emt 0:05:57]} Kb6 {[%emt 0:11:20]} 28. Rb8+ {[%emt 0:08:19]} Kc7 {[%emt 0:00:32]} 29. Rf8 {[%emt 0:00:33]} Re7 {[%emt 0:04:09]} 30. a5 {[%emt 0:01:06]} Kd6 {[%emt 0:07:15]} 31. b4 {[%emt 0:00:39]} Rb7 {[%emt 0:01:02]} 32. Rd8+ {[%emt 0:02:22]} Kc7 {[%emt 0:03:01]} 33. Rf8 {[%emt 0:00:07]} Kd6 {[%emt 0:00:04]} 34. Rd8+ {[%emt 0:00:06]} Kc7 {[%emt 0:00:04]} 35. Ra8 {[%emt 0:00:04]} Kd6 {[%emt 0:00:06]} 36. a6 {[%emt 0:05:06]} Rd7 {[%emt 0:04:42]} 37. g4 {[%emt 0:00:46]} hxg4 {[%emt 0:03:52]} 38. fxg4 {[%emt 0:00:02]} f5 {[%emt 0:00:17]} 39. Rg8 {[%emt 0:06:19]} fxg4 {[%emt 0:01:05]} 40. Rxg6+ {[%emt 0:00:04]} Kc7 {[%emt 0:00:13]} 41. Rxg4 {[%emt 0:12:28]} Rd1 {[%emt 0:01:04]} 42. h5 {[%emt 0:03:50]} Rh1 {[%emt 0:00:58]} 43. Rg5 {[%emt 0:00:16]} Kb6 {[%emt 0:00:52]} 44. Rc5 {[%emt 0:00:12]} Rh4+ {[%emt 0:00:37]} 45. Kc3 1/2-1/2

[Event "ESP chT Honor Division 2019"]
[Site "Melilla"]
[Date "2019.10.04"]
[Round "5.5"]
[White "Gines Esteo, Pedro Antonio"]
[Black "Ortega Hermida, Daniel"]
[Result "0-1"]
[ECO "A46"]
[WhiteElo "2451"]
[BlackElo "2341"]
[Annotator "ChessBase"]
[PlyCount "105"]
[EventDate "2019.09.30"]
[EventType "team-tourn"]
[EventCountry "ESP"]
[SourceTitle "playchess.com"]
[Source "ChessBase"]
[SourceQuality "1"]
[TimeControl "40/5400+30:1800+30"]

1. d4 {[%emt 0:00:00]} Nf6 {[%emt 0:00:00]} 2. Nf3 {[%emt 0:00:18]} e6 {[%emt 0:00:00]} 3. g3 {[%emt 0:02:14]} d5 {[%emt 0:01:43]} 4. Bg2 {[%emt 0:00:06]} Be7 {[%emt 0:00:06]} 5. O-O {[%emt 0:00:09]} O-O {[%emt 0:01:00]} 6. c4 {[%emt 0:00:05]} c6 {[%emt 0:00:36]} 7. Qc2 {[%emt 0:02:35]} b6 {[%emt 0:01:18]} 8. Bg5 {[%emt 0:02:48]} Bb7 {[%emt 0:07:23]} 9. Nbd2 {[%emt 0:09:53]} Nbd7 {[%emt 0:07:10]} 10. Rad1 {[%emt 0:06:53]} h6 {[%emt 0:05:32]} 11. Bxf6 {[%emt 0:07:34]} Nxf6 {[%emt 0:02:00]} 12. e4 {[%emt 0:04:20]} Rc8 {[%emt 0:01:49]} 13. Rfe1 {[%emt 0:10:57]} Qc7 {[%emt 0:03:27]} 14. c5 {[%emt 0:10:51]} bxc5 {[%emt 0:08:12]} 15. dxc5 {[%emt 0:00:06]} a5 {[%emt 0:00:20]} 16. a3 {[%emt 0:02:18]} Ba6 {[%emt 0:09:31]} 17. b4 {[%emt 0:01:06]} Rb8 {[%emt 0:00:06]} 18. Rb1 {[%emt 0:02:06]} axb4 {[%emt 0:04:28]} 19. axb4 {[%emt 0:00:05]} dxe4 {[%emt 0:00:12]} 20. Nxe4 {[%emt 0:00:06]} Nd5 {[%emt 0:00:07]} 21. Nd4 {[%emt 0:05:51]} Rb7 {[%emt 0:12:42]} 22. Qa4 {[%emt 0:15:59]} Bb5 {[%emt 0:04:55]} 23. Nxb5 {[%emt 0:02:41]} Rxb5 {[%emt 0:00:06]} 24. Bf1 {[%emt 0:00:14]} Rb7 {[%emt 0:00:10]} 25. Rec1 {[%emt 0:04:14]} Rfb8 {[%emt 0:03:59]} 26. b5 {[%emt 0:01:38]} cxb5 {[%emt 0:00:53]} 27. Rxb5 {[%emt 0:00:07]} Rxb5 {[%emt 0:01:53]} 28. Bxb5 {[%emt 0:00:01]} f5 {[%emt 0:11:15]} 29. Nd2 {[%emt 0:03:33]} Bg5 {[%emt 0:03:14]} 30. Rc2 {[%emt 0:05:38]} Bxd2 {[%emt 0:02:40]} 31. Rxd2 {[%emt 0:00:31]} Nc3 {[%emt 0:00:14]} 32. Qc4 {[%emt 0:00:17]} Nxb5 {[%emt 0:00:16]} 33. c6 {[%emt 0:00:41]} Qe5 {[%emt 0:00:54]} 34. Re2 {[%emt 0:00:34]} Nd6 {[%emt 0:02:46]} 35. Qxe6+ {[%emt 0:00:29]} Qxe6 {[%emt 0:00:07]} 36. Rxe6 {[%emt 0:00:04]} Nf7 {[%emt 0:00:52]} 37. Kg2 {[%emt 0:00:55]} Kf8 {[%emt 0:00:46]} 38. h4 {[%emt 0:00:06]} Rb3 {[%emt 0:02:39]} 39. h5 {[%emt 0:00:48]} Rc3 {[%emt 0:00:32]} 40. f4 {[%emt 0:00:24]} Rc5 {[%emt 0:00:25]} 41. Kf3 {[%emt 0:30:34]} Rc3+ {[%emt 0:03:44]} 42. Kg2 {[%emt 0:00:00]} Rd3 {[%emt 0:04:31]} 43. Kf2 {[%emt 0:00:00]} Rd6 {[%emt 0:02:00]} 44. c7 {[%emt 0:00:00]} Rd2+ {[%emt 0:00:13]} 45. Re2 {[%emt 0:00:00]} Rxe2+ {[%emt 0:00:07]} 46. Kxe2 {[%emt 0:00:00]} Nd6 {[%emt 0:00:03]} 47. Kd3 {[%emt 0:00:00]} Ke7 {[%emt 0:00:50]} 48. Kd4 {[%emt 0:00:00]} Ke6 {[%emt 0:00:27]} 49. Kc5 {[%emt 0:00:00]} Kd7 {[%emt 0:00:58]} 50. Kd5 {[%emt 0:00:00]} Ne4 {[%emt 0:00:34]} 51. g4 {[%emt 0:00:00]} Nf6+ {[%emt 0:00:12]} 52. Ke5 {[%emt 0:00:00]} fxg4 {[%emt 0:00:10]} 53. Kd4 0-1

[Event "ESP chT Honor Division 2019"]
[Site "Melilla"]
[Date "2019.10.04"]
[Round "5.6"]
[White "Vega Gutierrez, Belinda"]
[Black "Osmak, Iulija"]
[Result "1/2-1/2"]
[ECO "C70"]
[WhiteElo "2152"]
[BlackElo "2409"]
[Annotator "ChessBase"]
[PlyCount "227"]
[EventDate "2019.09.30"]
[EventType "team-tourn"]
[EventCountry "ESP"]
[SourceTitle "playchess.com"]
[Source "ChessBase"]
[SourceQuality "1"]
[TimeControl "40/5400+30:1800+30"]

1. e4 {[%emt 0:00:00]} e5 {[%emt 0:00:00]} 2. Nf3 {[%emt 0:00:00]} Nc6 {[%emt 0:00:00]} 3. Bb5 {[%emt 0:00:16]} a6 {[%emt 0:00:00]} 4. Ba4 {[%emt 0:00:15]} b5 {[%emt 0:00:00]} 5. Bb3 {[%emt 0:00:08]} Na5 {[%emt 0:00:00]} 6. O-O {[%emt 0:11:29]} d6 {[%emt 0:00:25]} 7. c3 {[%emt 0:08:43]} Nxb3 {[%emt 0:00:19]} 8. axb3 {[%emt 0:00:02]} Nf6 {[%emt 0:02:08]} 9. d4 {[%emt 0:10:12]} Nxe4 {[%emt 0:03:30]} 10. dxe5 {[%emt 0:03:13]} Bb7 {[%emt 0:02:04]} 11. Re1 {[%emt 0:02:31]} dxe5 {[%emt 0:11:47]} 12. Qxd8+ {[%emt 0:14:45]} Rxd8 {[%emt 0:00:39]} 13. Nbd2 {[%emt 0:00:32]} Nxd2 {[%emt 0:05:16]} 14. Rxe5+ {[%emt 0:00:16]} Be7 {[%emt 0:00:10]} 15. Nxd2 {[%emt 0:00:14]} f6 {[%emt 0:03:54]} 16. Re1 {[%emt 0:00:09]} Kf7 {[%emt 0:00:04]} 17. b4 {[%emt 0:06:02]} Rhe8 {[%emt 0:00:46]} 18. Nf1 {[%emt 0:00:08]} c5 {[%emt 0:01:06]} 19. bxc5 {[%emt 0:06:07]} Bxc5 {[%emt 0:00:04]} 20. Be3 {[%emt 0:00:35]} Bf8 {[%emt 0:05:14]} 21. h3 {[%emt 0:03:06]} Re6 {[%emt 0:04:04]} 22. Ng3 {[%emt 0:01:29]} b4 {[%emt 0:01:46]} 23. cxb4 {[%emt 0:03:23]} Bxb4 {[%emt 0:00:04]} 24. Rec1 {[%emt 0:01:50]} Rd7 {[%emt 0:09:13]} 25. Nf5 {[%emt 0:02:26]} Re5 {[%emt 0:05:54]} 26. Nd4 {[%emt 0:02:07]} Bf8 {[%emt 0:04:13]} 27. Nc6 {[%emt 0:08:13]} Re6 {[%emt 0:03:03]} 28. Na5 {[%emt 0:01:08]} Be4 {[%emt 0:00:30]} 29. Nc4 {[%emt 0:07:44]} Rb7 {[%emt 0:01:47]} 30. Rd1 {[%emt 0:01:14]} Rb4 {[%emt 0:03:22]} 31. Nd2 {[%emt 0:02:46]} Bb7 {[%emt 0:01:32]} 32. b3 {[%emt 0:00:59]} f5 {[%emt 0:07:46]} 33. Nc4 {[%emt 0:01:33]} Be7 {[%emt 0:01:09]} 34. Na5 {[%emt 0:01:14]} Be4 {[%emt 0:03:55]} 35. Rd7 {[%emt 0:01:23]} Rb5 {[%emt 0:00:28]} 36. Rc7 {[%emt 0:00:39]} h6 {[%emt 0:07:31]} 37. Nc4 {[%emt 0:00:34]} Rxb3 {[%emt 0:05:52]} 38. Bc5 {[%emt 0:00:16]} Rb1+ {[%emt 0:01:01]} 39. Rxb1 {[%emt 0:00:01]} Bxb1 {[%emt 0:00:04]} 40. Ra7 {[%emt 0:01:13]} Bd3 {[%emt 0:02:06]} 41. Bxe7 {[%emt 0:17:19]} Bxc4 {[%emt 0:00:11]} 42. Bb4+ {[%emt 0:00:15]} Kg8 {[%emt 0:00:36]} 43. Bc3 {[%emt 0:00:13]} g5 {[%emt 0:07:15]} 44. Kh2 {[%emt 0:00:55]} Kf8 {[%emt 0:01:54]} 45. Bd4 {[%emt 0:04:44]} Ke8 {[%emt 0:01:03]} 46. Bc3 {[%emt 0:02:15]} Bd5 {[%emt 0:02:51]} 47. Ba5 {[%emt 0:01:20]} Rc6 {[%emt 0:04:21]} 48. Rh7 {[%emt 0:03:38]} Kf8 {[%emt 0:04:29]} 49. Ra7 {[%emt 0:01:37]} Ke8 {[%emt 0:02:02]} 50. Rh7 {[%emt 0:00:14]} Bc4 {[%emt 0:06:21]} 51. Kg1 {[%emt 0:01:32]} Bd3 {[%emt 0:01:14]} 52. Kh2 {[%emt 0:00:17]} Be4 {[%emt 0:00:31]} 53. Ra7 {[%emt 0:00:37]} Rc2 {[%emt 0:03:05]} 54. Kg1 {[%emt 0:00:06]} Rc1+ {[%emt 0:00:07]} 55. Kh2 {[%emt 0:00:01]} Rc6 {[%emt 0:00:05]} 56. Kg1 {[%emt 0:00:05]} Rd6 {[%emt 0:01:17]} 57. Kh2 {[%emt 0:00:12]} Bd3 {[%emt 0:01:07]} 58. Bc3 {[%emt 0:03:18]} Be4 {[%emt 0:00:52]} 59. Ba5 {[%emt 0:00:09]} Bd3 {[%emt 0:02:21]} 60. Bc3 {[%emt 0:00:02]} Bb5 {[%emt 0:00:05]} 61. Rh7 {[%emt 0:00:19]} Rc6 {[%emt 0:01:16]} 62. Ba5 {[%emt 0:00:31]} Kf8 {[%emt 0:01:11]} 63. Ra7 {[%emt 0:00:09]} Rg6 {[%emt 0:02:01]} 64. Bc3 {[%emt 0:00:19]} g4 {[%emt 0:00:51]} 65. hxg4 {[%emt 0:01:34]} fxg4 {[%emt 0:01:28]} 66. Bd2 {[%emt 0:00:25]} Kg8 {[%emt 0:00:27]} 67. Kg3 {[%emt 0:00:28]} Bc4 {[%emt 0:01:06]} 68. Be3 {[%emt 0:01:17]} Bd5 {[%emt 0:00:27]} 69. Bd4 {[%emt 0:00:22]} h5 {[%emt 0:00:12]} 70. Kh4 {[%emt 0:00:36]} Rd6 {[%emt 0:00:38]} 71. Bc5 {[%emt 0:00:30]} Rc6 {[%emt 0:00:28]} 72. Be3 {[%emt 0:00:33]} Bxg2 {[%emt 0:00:47]} 73. Kxh5 {[%emt 0:00:08]} Bf3 {[%emt 0:00:05]} 74. Kg5 {[%emt 0:00:11]} Kf8 {[%emt 0:00:10]} 75. Kf5 {[%emt 0:01:00]} Ke8 {[%emt 0:00:08]} 76. Bg5 {[%emt 0:00:35]} Rb6 {[%emt 0:00:40]} 77. Kf4 {[%emt 0:00:29]} Rb4+ {[%emt 0:00:30]} 78. Kg3 {[%emt 0:00:39]} Bb7 {[%emt 0:00:23]} 79. Bf4 {[%emt 0:00:53]} Kd7 {[%emt 0:00:39]} 80. Kxg4 {[%emt 0:00:15]} Kc6 {[%emt 0:00:15]} 81. Kg5 {[%emt 0:00:20]} Rb3 {[%emt 0:01:09]} 82. Be3 {[%emt 0:00:25]} Kc7 {[%emt 0:00:07]} 83. Kf6 {[%emt 0:00:24]} Kb8 {[%emt 0:00:54]} 84. Bd4 {[%emt 0:00:03]} Rf3+ {[%emt 0:00:47]} 85. Kg7 {[%emt 0:01:25]} Kc7 {[%emt 0:00:41]} 86. Be3 {[%emt 0:00:18]} Kc6 {[%emt 0:00:30]} 87. Bd4 {[%emt 0:00:23]} Rd3 {[%emt 0:00:24]} 88. Be3 {[%emt 0:00:08]} Rd7+ {[%emt 0:00:10]} 89. Kf6 {[%emt 0:01:06]} Kd5 {[%emt 0:00:05]} 90. Kg5 {[%emt 0:00:38]} Rf7 {[%emt 0:00:10]} 91. Kg6 {[%emt 0:00:26]} Ke6 {[%emt 0:00:07]} 92. Kg5 {[%emt 0:00:06]} Ke5 {[%emt 0:00:34]} 93. Kg6 {[%emt 0:00:15]} Rd7 {[%emt 0:00:07]} 94. Bc5 {[%emt 0:00:32]} Kd5 {[%emt 0:00:44]} 95. Be3 {[%emt 0:00:02]} Kc4 {[%emt 0:00:10]} 96. Kf6 {[%emt 0:00:33]} Kb5 {[%emt 0:00:08]} 97. Ke6 {[%emt 0:00:20]} Rh7 {[%emt 0:00:09]} 98. Kd6 {[%emt 0:00:45]} Rf7 {[%emt 0:00:26]} 99. Ke6 {[%emt 0:00:14]} Rg7 {[%emt 0:00:05]} 100. Kd6 {[%emt 0:00:04]} a5 {[%emt 0:00:11]} 101. Bd2 {[%emt 0:01:51]} Rg6+ {[%emt 0:00:15]} 102. Ke5 {[%emt 0:00:24]} Ba6 {[%emt 0:00:07]} 103. Bxa5 {[%emt 0:00:46]} Kxa5 {[%emt 0:00:09]} 104. f4 {[%emt 0:00:06]} Kb6 {[%emt 0:00:34]} 105. f5 {[%emt 0:00:53]} Rg1 {[%emt 0:00:08]} 106. Rxa6+ {[%emt 0:00:43]} Kxa6 {[%emt 0:00:05]} 107. f6 {[%emt 0:00:03]} Kb7 {[%emt 0:00:30]} 108. f7 {[%emt 0:00:26]} Rf1 {[%emt 0:00:05]} 109. Ke6 {[%emt 0:00:04]} Kc7 {[%emt 0:00:06]} 110. Ke7 {[%emt 0:00:04]} Re1+ {[%emt 0:00:04]} 111. Kf6 {[%emt 0:00:08]} Kd7 {[%emt 0:00:09]} 112. f8=Q {[%emt 0:00:11]} Rf1+ {[%emt 0:00:02]} 113. Kg7 {[%emt 0:00:09]} Rxf8 {[%emt 0:00:05]} 114. Kxf8 1/2-1/2

[Event "ESP chT Honor Division 2019"]
[Site "Melilla"]
[Date "2019.10.04"]
[Round "5.7"]
[White "Ivanchuk, Vassily"]
[Black "Rakhmanov, Aleksandr"]
[Result "1/2-1/2"]
[ECO "C42"]
[WhiteElo "2686"]
[BlackElo "2621"]
[Annotator "ChessBase"]
[PlyCount "102"]
[EventDate "2019.09.30"]
[EventType "team-tourn"]
[EventCountry "ESP"]
[SourceTitle "playchess.com"]
[Source "ChessBase"]
[SourceQuality "1"]
[TimeControl "40/5400+30:1800+30"]

1. e4 {[%emt 0:00:00]} e5 {[%emt 0:00:00]} 2. Nf3 {[%emt 0:00:00]} Nf6 {[%emt 0:00:00]} 3. Nxe5 {[%emt 0:00:00]} d6 {[%emt 0:00:00]} 4. Nf3 {[%emt 0:00:00]} Nxe4 {[%emt 0:00:00]} 5. Nc3 {[%emt 0:00:00]} Nf6 {[%emt 0:02:06]} 6. d4 {[%emt 0:00:00]} Be7 {[%emt 0:00:38]} 7. Bd3 {[%emt 0:00:09]} O-O {[%emt 0:00:14]} 8. O-O {[%emt 0:00:03]} Re8 {[%emt 0:04:38]} 9. Re1 {[%emt 0:04:57]} c6 {[%emt 0:03:23]} 10. d5 {[%emt 0:14:51]} cxd5 {[%emt 0:05:26]} 11. Bg5 {[%emt 0:08:59]} Nc6 {[%emt 0:06:06]} 12. Bxf6 {[%emt 0:20:41]} Bxf6 {[%emt 0:01:09]} 13. Rxe8+ {[%emt 0:00:04]} Qxe8 {[%emt 0:00:07]} 14. Nxd5 {[%emt 0:00:02]} Bd8 {[%emt 0:16:07]} 15. c3 {[%emt 0:02:41]} Ne5 {[%emt 0:10:55]} 16. Be4 {[%emt 0:08:07]} Bd7 {[%emt 0:07:21]} 17. Nd4 {[%emt 0:09:10]} g6 {[%emt 0:03:24]} 18. Qe2 {[%emt 0:09:48]} Bc6 {[%emt 0:02:18]} 19. g3 {[%emt 0:05:14]} Nd7 {[%emt 0:07:03]} 20. Re1 {[%emt 0:06:38]} Nc5 {[%emt 0:01:41]} 21. Nxc6 {[%emt 0:00:36]} bxc6 {[%emt 0:00:58]} 22. Nb4 {[%emt 0:00:02]} d5 {[%emt 0:05:25]} 23. Bc2 {[%emt 0:01:42]} Qxe2 {[%emt 0:04:08]} 24. Rxe2 {[%emt 0:00:01]} Bf6 {[%emt 0:04:12]} 25. Nxc6 {[%emt 0:00:20]} a5 {[%emt 0:00:17]} 26. b4 {[%emt 0:02:37]} Rc8 {[%emt 0:05:27]} 27. Ne7+ {[%emt 0:02:35]} Bxe7 {[%emt 0:00:07]} 28. Rxe7 {[%emt 0:00:01]} axb4 {[%emt 0:01:52]} 29. cxb4 {[%emt 0:00:01]} Na6 {[%emt 0:01:18]} 30. Bb3 {[%emt 0:00:08]} Nxb4 {[%emt 0:01:50]} 31. Rb7 {[%emt 0:00:01]} Nd3 {[%emt 0:02:30]} 32. Bxd5 {[%emt 0:00:02]} Rc1+ {[%emt 0:01:20]} 33. Kg2 {[%emt 0:00:02]} Ne1+ {[%emt 0:00:10]} 34. Kh3 {[%emt 0:02:22]} Rc5 {[%emt 0:00:14]} 35. Bxf7+ {[%emt 0:00:59]} Kf8 {[%emt 0:00:12]} 36. Bb3 {[%emt 0:02:16]} Rh5+ {[%emt 0:00:18]} 37. Kg4 {[%emt 0:00:05]} Nd3 {[%emt 0:00:59]} 38. f4 {[%emt 0:01:07]} Rxh2 {[%emt 0:00:15]} 39. Bc4 {[%emt 0:02:07]} Nc5 {[%emt 0:00:57]} 40. Rf7+ {[%emt 0:00:41]} Ke8 {[%emt 0:00:03]} 41. Rf6 {[%emt 0:03:36]} Kd7 {[%emt 0:06:48]} 42. Kf3 {[%emt 0:07:07]} Rd2 {[%emt 0:09:54]} 43. Rf7+ {[%emt 0:08:41]} Kd6 {[%emt 0:00:42]} 44. Rxh7 {[%emt 0:03:16]} Rc2 {[%emt 0:00:20]} 45. Bb5 {[%emt 0:00:02]} Rxa2 {[%emt 0:15:37]} 46. Rg7 {[%emt 0:02:07]} Ra3+ {[%emt 0:00:17]} 47. Kg2 {[%emt 0:00:45]} Ne4 {[%emt 0:00:38]} 48. Rxg6+ {[%emt 0:00:07]} Kc5 {[%emt 0:00:01]} 49. Bd7 {[%emt 0:05:25]} Kd4 {[%emt 0:02:18]} 50. Bc6 {[%emt 0:00:27]} Ra2+ {[%emt 0:00:39]} 51. Kh3 {[%emt 0:00:43]} Nf2+ {[%emt 0:01:41]} 1/2-1/2